Cogmind - Beta 11 @@@ ROGUE MODE // 2022.04.01 @ 18:11:14 Player: Turbografx16 Result: Self-destructed Performance ------------- Evolutions (2) 1000 Regions Visited (5) 1000 Robots Destroyed (27) 135 Value Destroyed (802) 802 Prototype IDs (1) 20 Alien Tech Used (0) 0 Bonus (137) 137 TOTAL SCORE: 3094 Bonus ------- Follower Combat Kills 137 Cogmind --------- Core Integrity 370/550 Matter 300/300 Energy 42/290 System Corruption 0% Temperature Hot (276) Movement Treading (250) Ox1 Location -8/Materials Parts ------- > --- POWER (1) -------- Reinforced Deuterium Engine > --- PROPULSION (3) --- Armored Treads > --- UTILITY (4) ------ Large Storage Unit Improved Targeting Computer > --- WEAPON (3) ------- (None) > --- INVENTORY (15) --- Light Nuclear Core Aerolev Unit Gravmag System Gravmag System Gravmag System Gravmag System Improved Terrain Scanner Advanced Terrain Scan Processor Advanced Terrain Scan Processor Hacking Suite Hacking Suite Improved EM Pulse Cannon Grenade Launcher Improved Datajack Peak State ------------ > --- POWER ------------ Reinforced Deuterium Engine > --- PROPULSION ------- Light Treads Armored Treads Armored Treads > --- UTILITY ---------- Large Storage Unit Improved Targeting Computer Recoil Stabilizer Light Armor Plating > --- WEAPON ----------- Improved EM Pulse Cannon Improved EM Pulse Cannon Improved EM Pulse Cannon > --- INVENTORY -------- Light Nuclear Core Gravmag System Gravmag System Gravmag System Gravmag System Improved Sensor Array Active Sensor Suite Improved Terrain Scanner Advanced Terrain Scan Processor Advanced Terrain Scan Processor Grenade Launcher Grenade Launcher Datajack [Rating: 36] Favorites ----------- Power Ion Engine Engine Ion Engine Power Core Light Nuclear Core Propulsion Light Treads Treads Light Treads Leg Aluminum Leg Hover Unit Aerolev Unit Utility Large Storage Unit Device Improved Terrain Scanner Storage Large Storage Unit Processor Improved Targeting Computer Protection Medium Armor Plating Weapon Assault Rifle Energy Gun EM Pulse Gun Energy Cannon Improved EM Pulse Cannon Ballistic Gun Assault Rifle Launcher Grenade Launcher Build | -11 -10 -10 -10 -9 -8 ------- Run | Scr Mat Min Exi Min Mat Slots Evolved 4 | . . . . . 4 Power . | . . . . . . Propulsion 1 | . . . . . 1 Utility 2 | . . . . . 2 Weapon 1 | . . . . . 1 Parts Attached 31 | 1 6 . 2 6 16 Power 3 | . . . . 1 2 Engine 1 | . . . . . 1 Core 2 | . . . . 1 1 Reactor . | . . . . . . Propulsion 6 | . 2 . . . 4 Treads 5 | . 2 . . . 3 Leg . | . . . . . . Wheel . | . . . . . . Hover 1 | . . . . . 1 Flight . | . . . . . . Utility 8 | 1 1 . . 1 5 Device 4 | 1 . . . . 3 Storage 1 | . 1 . . . . Processor 1 | . . . . . 1 Hackware . | . . . . . . Protection 2 | . . . . 1 1 Artifact . | . . . . . . Weapon 14 | . 3 . 2 4 5 Energy Gun 2 | . . . 1 . 1 Energy Cannon 3 | . . . . . 3 Ballistic Gun 6 | . 1 . 1 3 1 Ballistic Cannon . | . . . . . . Launcher 3 | . 2 . . 1 . Special Weapon . | . . . . . . Impact Weapon . | . . . . . . Slashing Weapon . | . . . . . . Piercing Weapon . | . . . . . . Special Melee Weapon . | . . . . . . Unidentified Prototypes 1 | . . . . . 1 Corrupted Parts 1 | 1 . . . . . System Corruption 2 | 2 . . . . . Parts Lost 11 | . . . . . 11 Power 1 | . . . . . 1 Propulsion 3 | . . . . . 3 Utility 3 | . . . . . 3 Weapon 4 | . . . . . 4 Highest Loss Streak 6 | . . . . . 6 To Critical Strikes 1 | . . . . . 1 Average Slot Usage (%) 98 | . 100 100 100 100 95 Engine 8 | . 14 14 14 . 4 Core 3 | . . . . 13 4 Treads 26 | . 21 28 28 28 24 Device 11 | . 14 14 14 7 8 Storage 12 | . 14 14 14 14 9 Processor 2 | . . . . . 9 Protection 3 | . . . . 6 7 Energy Gun 7 | . 13 . 14 3 1 Energy Cannon 2 | . . . . . 11 Ballistic Gun 14 | . 13 . 14 24 13 Launcher 3 | . 1 28 . . . Naked Turns . | . . . . . . Heaviest Build 60 | 14 32 32 32 39 60 Greatest Support 60 | 20 40 40 40 40 60 Greatest Overweight (x) 1 | . . . . . 1 Average Overweight (x) . | . . . . . . Largest Inventory Capacity 15 | 8 15 15 15 15 15 Average Capacity 14 | 8 13 15 15 15 15 Most Carried 15 | 6 8 8 12 15 15 Average Carried 10 | 5 7 8 9 13 13 Final Capacity 15 | 8 15 15 15 15 15 Final Carried 14 | 4 8 8 12 14 14 Class Distribution -------------------- 79% | Mutant 20% | Gunner Dominant Class ---------------- Mutant | -10/Materials Mutant | -10/Mines Mutant | -10/Exiles Mutant | -9/Mines Gunner | -8/Materials Resources | -11 -10 -10 -10 -9 -8 ----------- Run | Scr Mat Min Exi Min Mat Matter Collected 1167 | 213 . 43 300 240 371 Remotely . | . . . . . . Salvage Created 987 | 98 35 22 . 170 662 Parts 59 | 5 2 4 . 18 30 Haulers Intercepted . | . . . . . . Recyclers Shooed 2 | . . 1 . 1 . Parts Field Recycled . | . . . . . . Retrieved Matter . | . . . . . . Parts Self-Destructed . | . . . . . . Prevented . | . . . . . . Kills | -11 -10 -10 -10 -9 -8 ------- Run | Scr Mat Min Exi Min Mat Combat Hostiles Destroyed 25 | . 1 5 . 8 11 Guns 12 | . 1 . . 4 7 Cannons 3 | . . . . . 3 AOE 10 | . . 5 . 4 1 Classes Destroyed 9 | 2 1 2 . 1 3 Tunneler 1 | 1 . . . . . Recycler 2 | 1 . . . . 1 Watcher 1 | . . . . . 1 Swarmer 9 | . . 3 . 6 . Grunt 9 | . 1 . . 1 7 Sentry 3 | . . . . 1 2 Hunter 1 | . . . . . 1 Heavy 1 | . . . . . 1 Assembled 2 | . . 2 . . . Best Kill Streak 6 | 2 1 3 . 6 4 Combat Bots Only 6 | . 1 3 . 6 4 Max Kills in Single Turn 4 | 1 1 2 . 4 1 Gunslinging . | . . . . . . Exploded 4 | . . 2 . 4 1 Melee . | . . . . . . Uniques/NPCs Destroyed . | . . . . . . Combat | -11 -10 -10 -10 -9 -8 -------- Run | Scr Mat Min Exi Min Mat Damage Taken 1959 | . 43 94 . 120 1702 Core 226 | . 12 17 . 17 180 Absorbed by Shields . | . . . . . . Core Remaining (%) 90 | 100 . . . 81 . Volleys Fired 53 | 3 4 4 . 6 36 Largest 3 | 2 2 2 . 2 3 Hottest 207 | 60 60 60 . 60 207 Shots Fired 133 | 6 8 8 . 12 99 Gun 101 | 6 8 . . 11 76 Cannon 23 | . . . . . 23 Launcher 9 | . . 8 . 1 . Special . | . . . . . . Kinetic 84 | 3 4 . . 8 69 Thermal . | . . . . . . Explosive 9 | . . 8 . 1 . Electromagnetic 40 | 3 4 . . 3 30 Robot Hit Streak 12 | 4 1 1 . 7 12 Robot Miss Streak 3 | 1 2 1 . 2 3 Penetration Max . | . . . . . . Secondary Targets 2 | . . . . 1 1 Max Gunslinging Chain 1 | . . . . 1 1 Shots Hit Robots 88 | 5 3 1 . 8 71 Core Hits 59 | 2 2 16 . 10 29 Critical Kills 1 | . . . . . 1 Critical Parts Destroyed . | . . . . . . Critical Strikes 1 | . . . . . 1 Destroy 1 | . . . . . 1 Melee Attacks . | . . . . . . Impact . | . . . . . . Slashing . | . . . . . . Piercing . | . . . . . . Sneak Attacks . | . . . . . . Combat Hostiles . | . . . . . . Follow-up Attacks . | . . . . . . Damage Inflicted 1938 | 105 33 278 . 189 1333 Guns 1022 | 52 33 . . 90 847 Cannons 424 | . . . . . 424 Explosions 482 | 53 . 276 . 95 58 Melee . | . . . . . . Ramming 10 | . . 2 . 4 4 Kinetic 865 | 24 21 . . 52 768 Thermal 111 | 53 . . . . 58 Explosive 371 | . . 276 . 95 . Electromagnetic 581 | 28 12 . . 38 503 Impact . | . . . . . . Slashing . | . . . . . . Piercing . | . . . . . . Highest Corruption 2 | 2 2 2 2 2 . Average Corruption 2 | 2 2 2 2 2 . Corruption Purged . | . . . . . . Corruption Blocked . | . . . . . . Effects 22 | . 4 3 8 7 . Message Errors 7 | . 2 . 4 1 . Matter Fused 7 | . 2 2 2 1 . Heat Flow Errors 4 | . . . 1 3 . Data Loss (minor) 1 | . . . 1 . . Data Loss (major) 1 | . . . . 1 . Alerts 2 | . . 1 . 1 . Overload Shots . | . . . . . . Overflow Damage . | . . . . . . Projectiles . | . . . . . . Explosions . | . . . . . . Melee . | . . . . . . Knockbacks . | . . . . . . Impact . | . . . . . . Kinetic . | . . . . . . Secondary . | . . . . . . Self-Inflicted Damage . | . . . . . . Shots . | . . . . . . Rammed 4 | . . 1 . 2 1 Targets Rammed 4 | . . 1 . 2 1 Kicked . | . . . . . . Crushed . | . . . . . . Highest Temperature 291 | 20 18 . 160 194 291 Average Temperature 92 | 15 14 . 85 76 104 Received Heat Transfer 336 | . 24 . . 15 297 Effects 4 | . . . . . 4 Interference 4 | . . . . . 4 Siege Activations . | . . . . . . Robots Corrupted . | . . . . . . Combat Hostiles . | . . . . . . Parts Fried 2 | 1 . . . . 1 Impact Corruptions . | . . . . . . Robots Melted . | . . . . . . Combat Hostiles . | . . . . . . Parts Melted 1 | . . . . . 1 Heat Transferred 150 | 100 . . . . 50 Parts Sabotaged . | . . . . . . Parts Stolen . | . . . . . . Parts Stripped . | . . . . . . Power Chain Reactions 2 | 1 . . . . 1 Missiles Intercepted . | . . . . . . Alert | -11 -10 -10 -10 -9 -8 ------- Run | Scr Mat Min Exi Min Mat Peak Influence 272 | 10 39 207 . 272 272 Initial 27 | . 6 15 . . 27 Average 90 | 8 9 90 . 113 117 Maximum Alert Level 1 | . . 1 . 1 1 Low Security (%) 83 | 100 100 77 . 81 78 Level 1 16 | . . 22 . 18 21 Level 2 . | . . . . . . Level 3 . | . . . . . . Level 4 . | . . . . . . Level 5 . | . . . . . . High Security . | . . . . . . Max Security . | . . . . . . Squads Dispatched 6 | . 1 . . . 5 Investigation 1 | . . . . . 1 Extermination . | . . . . . . Reinforcement 5 | . 1 . . . 4 Assault . | . . . . . . Garrison . | . . . . . . Intercept . | . . . . . . Searches Triggered . | . . . . . . Construction Impeded . | . . . . . . Haulers Reinforced . | . . . . . . Active Scanning Responses . | . . . . . . Cargo Convoy Interrupts . | . . . . . . Stealth | -11 -10 -10 -10 -9 -8 --------- Run | Scr Mat Min Exi Min Mat Distress Signals 2 | . . . . . 2 Communications Jammed . | . . . . . . Distress Signals . | . . . . . . Times Spotted 34 | . 2 5 . 11 16 Peak Tracking Total 5 | . 1 3 . 5 5 Tactical Retreats . | . . . . . . Traps | -11 -10 -10 -10 -9 -8 ------- Run | Scr Mat Min Exi Min Mat Traps Triggered 1 | . . . . . 1 Indirectly . | . . . . . . Trap Hack Attempts . | . . . . . . Triggered . | . . . . . . Disarmed . | . . . . . . Reprogrammed . | . . . . . . Reused . | . . . . . . Traps Extracted . | . . . . . . Installed . | . . . . . . Triggered . | . . . . . . Machines | -11 -10 -10 -10 -9 -8 ---------- Run | Scr Mat Min Exi Min Mat Machines Disabled 2 | . . 1 . . 1 Max in Single Turn 1 | . . 1 . . 1 Machines Sabotaged . | . . . . . . Garrisons Compromised . | . . . . . . Overloaded Fab Kills . | . . . . . . Hacking | -11 -10 -10 -10 -9 -8 --------- Run | Scr Mat Min Exi Min Mat Machines Accessed 2 | . . . 2 . . Terminals . | . . . . . . Fabricators . | . . . . . . Repair Stations . | . . . . . . Recycling Units . | . . . . . . Scanalyzers . | . . . . . . Garrison Access . | . . . . . . Total Hacks 32 | . . . 32 . . Successful 32 | . . . 32 . . Failed . | . . . . . . Catastrophic . | . . . . . . Database Lockouts . | . . . . . . Manual . | . . . . . . Terminals . | . . . . . . Fabricators . | . . . . . . Repair Stations . | . . . . . . Recycling Units . | . . . . . . Scanalyzers . | . . . . . . Garrison Access . | . . . . . . Terminal Hacks 32 | . . . 32 . . Record 32 | . . . 32 . . Fabricator Hacks . | . . . . . . Repair Station Hacks . | . . . . . . Recycling Unit Hacks . | . . . . . . Scanalyzer . | . . . . . . Garrison Access Hacks . | . . . . . . Unauthorized Hacks . | . . . . . . Terminals . | . . . . . . Fabricators . | . . . . . . Repair Stations . | . . . . . . Recycling Units . | . . . . . . Scanalyzers . | . . . . . . Garrison Access . | . . . . . . Data Cores Recovered . | . . . . . . Used . | . . . . . . Hacking Detections . | . . . . . . Full Trace Events . | . . . . . . Feedback Events . | . . . . . . Feedback Blocked . | . . . . . . Robot Schematics Acquired . | . . . . . . Robots Built . | . . . . . . Authchips . | . . . . . . Time . | . . . . . . Total Robot Build Rating . | . . . . . . Part Schematics Acquired . | . . . . . . Parts Built . | . . . . . . Authchips . | . . . . . . Time . | . . . . . . Total Part Build Rating . | . . . . . . Parts Repaired . | . . . . . . Time . | . . . . . . Parts Recycled . | . . . . . . Recycled Matter . | . . . . . . Retrieved Matter . | . . . . . . Retrieved Components . | . . . . . . Parts Scanalyzed . | . . . . . . Part Schematics Acquired . | . . . . . . Parts Damaged . | . . . . . . Bothacking | -11 -10 -10 -10 -9 -8 ------------ Run | Scr Mat Min Exi Min Mat Used RIF Installer . | . . . . . . Robots Hacked . | . . . . . . Non-combat . | . . . . . . Combat . | . . . . . . Robot Hacks Applied . | . . . . . . Relay Couplers Released . | . . . . . . Fabnet Peak Effective % . | . . . . . . Robots Rewired . | . . . . . . Allies Hacked . | . . . . . . Hacks Repelled . | . . . . . . Allies | -11 -10 -10 -10 -9 -8 -------- Run | Scr Mat Min Exi Min Mat Total Allies 5 | . . 3 . 2 . Largest Group 3 | . . 3 3 3 3 Highest-Rated Group 59 | . . 40 40 59 59 Highest-Rated Ally 31 | . . 16 16 31 31 Total Orders . | . . . . . . Ally Attacks 30 | . . . . 9 21 Total Damage 415 | . . . . 113 302 Kills 5 | . . . . 3 2 Allies Corrupted . | . . . . . . Allies Melted . | . . . . . . Intel | -11 -10 -10 -10 -9 -8 ------- Run | Scr Mat Min Exi Min Mat Robot Analysis Total . | . . . . . . Derelict Logs Recovered . | . . . . . . Drone Launches . | . . . . . . Drone Recoveries . | . . . . . . Exploration | -11 -10 -10 -10 -9 -8 ------------- Run | Scr Mat Min Exi Min Mat Turns Passed 2408 | 40 269 260 811 486 542 Spaces Moved 1250 | 25 72 155 503 280 215 Core . | . . . . . . Treads 1178 | . 25 155 503 280 215 Legs 72 | 25 47 . . . . Wheels . | . . . . . . Hover . | . . . . . . Flight . | . . . . . . Fastest Speed 120 | 120 120 160 160 160 163 Average Speed 160 | 120 133 160 160 160 174 Slowest Speed 245 | 120 160 160 160 160 245 Overloaded Moves . | . . . . . . Propulsion Burnouts . | . . . . . . Robots Hopped . | . . . . . . Cave-ins Triggered . | . . . . . . Exploration Rate (%) 34 | 3 16 46 86 43 15 Regions Visited 5 Branch Regions 3 Pre-discovered Areas 1 | . . . 1 . . Known Exits Taken . | . . . . . . Unknown Exits Taken 5 | 1 1 1 1 1 . Scrap Searched 2 | . . 1 . 1 . Spaces Dug . | . . . . . . Terrain Destroyed 67 | 7 . 43 . 9 8 Melee . | . . . . . . Projectile 4 | . . . . . 4 AOE 63 | 7 . 43 . 9 4 Terrain Rammed . | . . . . . . Walls Destroyed . | . . . . . . Machines Disabled . | . . . . . . Actions | -11 -10 -10 -10 -9 -8 --------- Run | Scr Mat Min Exi Min Mat Total 1541 | 30 235 159 508 304 305 Wait 158 | . 150 . . . 8 Move 1245 | 24 71 154 502 279 215 Hop . | . . . . . . Pick Up 29 | . 3 . 4 6 16 Fast Attach 8 | 1 . . . 1 6 Attach 6 | . . . . . 6 Detach . | . . . . . . Swap 17 | . 6 . 2 5 4 Drop 21 | 2 1 . . 5 13 Fire 53 | 3 4 4 . 6 36 Melee . | . . . . . . Ram . | . . . . . . Kick . | . . . . . . Crush 4 | . . 1 . 2 1 Escape Stasis . | . . . . . . Rewire . | . . . . . . Trap . | . . . . . . Miscellaneous . | . . . . . . Route ------- -11/Scrapyard -10/Materials (discovered 2 exits: [*Mat] / [*Min]) -10/Mines -10/Exiles -9/Mines (discovered 2 exits: [*Mat x2]) -8/Materials (discovered 1 exit: [*Sto]) History --------- Turn | Location | Event 4 | -11/Scrapyard | Discovered new exit (range 2) 41 | -11/Scrapyard | Entered Materials 92 | -10/Materials | Discovered new exit (range 10) 92 | -10/Materials | Discovered new exit (range 12) 300 | -10/Materials | Build established: Mutant 310 | -10/Materials | Entered Mines 311 | -10/Mines | Assembled infested the area 316 | -10/Mines | Assisted by a Guerilla fighting off Assembled 409 | -10/Mines | Assisted by bots powering up and referring to "LRC-V3" 564 | -10/Mines | Deemed a non-threat by the Exiles lab entrance 564 | -10/Mines | Discovered new exit (range 5) 570 | -10/Mines | Entered Exiles 570 | -10/Exiles | Accompanied by 3 allies 631 | -10/Exiles | Met 8R-AWN 657 | -10/Exiles | Met EX-HEX 740 | -10/Exiles | Met EX-DEC 778 | -10/Exiles | Visited The Gauntlet 996 | -10/Exiles | Learned location of Zion (-6) 1145 | -10/Exiles | Discovered new exit (range 12) 1251 | -10/Exiles | Met EX-BIN 1381 | -10/Exiles | Entered Mines 1381 | -9/Mines | Accompanied by 3 allies 1459 | -9/Mines | Joined a pair of Derelicts in attacking an 0b10 outpost 1634 | -9/Mines | Discovered new exit (range 4) 1712 | -9/Mines | A weapon hastily lodged in a ceiling crevice suddenly fell to the ground 1854 | -9/Mines | Discovered new exit (range 3) 1867 | -9/Mines | Entered Materials 1867 | -8/Materials | Accompanied by 3 allies 1867 | -8/Materials | Evolved 4 slots: Propulsion x1, Utility x2, Weapon x1 1872 | -8/Materials | Led the pair of lost Derelicts to an unsafe place 2114 | -8/Materials | Discovered new exit (range 14) 2119 | -8/Materials | Found Prototype Device 2135 | -8/Materials | Lost 4 parts (1p1n1u1w) 2409 | -8/Materials | Self-destructed Last Messages --------------- 02373_ ALERT: Hostiles spotted, dispatching reinforcements to Terminal M007. 02385_ ALERT: Security rotation in progress. 02387_ Lgt. Armor Plating destroyed. 02391_ H-61 Shepherd calls for reinforcements. 02391_ ALERT: Hostile activity reported, dispatching reinforcements to area. 02391_ Lgt. Treads destroyed. 02393_ Penetrated by Slug. 02393_ U-05 Engineer builds a Wall. 02395_ Imp. EM Pulse Cannon destroyed. 02398_ U-05 Engineer builds a Wall. 02399_ Imp. EM Pulse Cannon destroyed. 02402_ Penetrated by Slug. 02402_ U-05 Engineer destroyed. 02404_ Imp. Sensor Array destroyed. 02404_ Critical hit (Blast). 02408_ K-01 Serf collects debris. 02408_ Penetrated by Slug. 02408_ Imp. EM Pulse Cannon blasted off. Map ----- +----------------------------------------------------+ | ?????????????????????????????# """ + + # | | ?????????????????"??????#????# """ # # # | | ?????????????????????????????# # # # | | ?????????????????????????????# """ # # "T" # | | ??????????????????????????##?# """ # # """ # | | ?????????????????????#???????# """ # # # | | ?????????????????????????????# # ######### | | ?????????????????????????????######## #### # | | ?????????????????????"?????#????????# + # | | ???????????????#????????????????????# #### # | | ????????????????????????????????????# #??# # | | ?????????????????????????????#??#???# %#??# # | | ???????????????????????????????#???## #??# # | | ??????????????????????#???????#?###?# #??# # | | ?????????????????????? ??????#### ### #??###### | | ?????????????????????? ??????# =! # ######??? | | ?????????????????????? ?????# =! # !#???? | | ??????????????????????? ?????# *#[ [ #???? | | ??????????????????????? ?????# ]"Y"!#!* [!!#???? | | ??????????????????????? ?????# ""%%+%[ !!!#???? | | ???????????????????????#u????# ![==#%%!%% #???? | | ???????????????????????#u????########!* [ #???? | | ???????????????????????#k????????# ##!! #####???? | | ??????????????????????##%##???????##=%%! ##?????? | | ??????????????????????#] ##########%!%! ##?????? | | ??????????????????????#%H@%= % =%[*=[!*##?????? | | ??????????????????????# %]##########%%=! #??????? | | ??????????????????????#####???????##=!!! #??????? | | ??????????????????????????#???????####+#####????? | | ??????????????????????????????????# #????? | | ??????????????????????????????????# !#????? | | ??????????????????????????????????# """ =#????? | | ??????????????????????????????????# """"" #????? | | ??????????????????????????????????# """"" #????? | | ??????????????????????????????????# """"" #????? | | ??????????????????????????????????# """ #????? | | ??????????????????????????????????#/ #????? | | ??????????????????????????????????# #????? | | ??????????????????????????????????##########????? | | ????????????????????????????????????????????????? | | ????????????????????????????????????????????????? | | ????????????????????????????????????????????????? | | ????????????????????????????????????????????????? | | ????????????????????????????????????????????????? | | ????????????????????????????????????????????????? | | ????????????????????????????????????????????????? | | ????????????????????????????????????????????????? | | ????????????????????????????????????????????????? | | ????????????????????????????????????????????????? | | ????????????????????????????????????????????????? | +----------------------------------------------------+ Best States ------------- Heat Dissipation 31 Energy Generation 16 Energy Capacity 290 Matter Stores 300 Matter Capacity 300 Sight Range 16 Robot Scan Range 15 Terrain Scan Range 16 Terrain Scan Density 10 Armor Coverage 225 Evasion (%) 55 Targeting Accuracy 6 Recoil Reduction 7 Item Schematics ----------------- None Robot Schematics ------------------ None Fabricated ------------ Nothing Alien Tech Used ----------------- None Achievements -------------- None Challenges ------------ None Game ------ Seed EnergyCoilCycler Manual? 0 Play Time 00:28:14 Cumulative 51.4 hours Start 2022.04.01 @ 17:43:22 End 2022.04.01 @ 18:11:14 Sessions 1 Manual Loads 0 Difficulty Rogue Special Mode None Game No. 74 Rogue 18 Adventurer 56 Explorer 0 Win Type - Total 4 Types 3/0/0/1/0/0/0/0/0 Lore% 46 Gallery% 52 Achievement% 54 Wizard Run 0 Options --------- ASCII 0 Keyboard 0 Movement Mouse Keybinds 0 Fullscreen 1 Font 20/SmallcapsGlow Map View 66x50 Tactical HUD 1 Map Filters NONE Filters NONE Steam 1 RUN: 2f028bb7-7c9d-44ca-b137-3294c8419253